[Event "Titled Tuesday Blitz January 03 Late 2023"]
[White "Zakhartsov, Vladimir"]
[Black "Paravyan, David"]
[WhiteFideId "4145097"]
[BlackFideId "4194985"]
[WhiteElo "2552"]
[BlackElo "2601"]
[Result "1-0"]
[Round "04"]
[TimeControl "180+2"]
[Date "2023.01.03"]
[WhiteClock "0:00:08"]
[BlackClock "0:00:06"]

1. c4 {[%clk 0:03:00]}  Nf6 {[%clk 0:02:59]} 2. Nc3 {[%clk 0:03:00]}  d5 {[%clk 0:03:00]} 3. cxd5 {[%clk 0:03:00]}  Nxd5 {[%clk 0:03:01]} 4. g3 {[%clk 0:02:59]}  e5 {[%clk 0:03:01]} 5. Bg2 {[%clk 0:02:58]}  Nxc3 {[%clk 0:03:01]} 6. bxc3 {[%clk 0:02:58]}  Bd6 {[%clk 0:03:02]} 7. Nf3 {[%clk 0:02:55]}  O-O {[%clk 0:03:02]} 8. d3 {[%clk 0:02:55]}  Nc6 {[%clk 0:03:03]} 9. O-O {[%clk 0:02:55]}  Rb8 {[%clk 0:03:03]} 10. Nd2 {[%clk 0:02:55]}  Bg4 {[%clk 0:02:59]} 11. h3 {[%clk 0:02:53]}  Be6 {[%clk 0:02:59]} 12. Nc4 {[%clk 0:02:52]}  Qd7 {[%clk 0:02:57]} 13. Kh2 {[%clk 0:02:51]}  b5 {[%clk 0:02:53]} 14. Nxd6 {[%clk 0:02:47]}  cxd6 {[%clk 0:02:54]} 15. f4 {[%clk 0:02:29]}  f6 {[%clk 0:02:54]} 16. e4 {[%clk 0:02:24]}  Rfc8 {[%clk 0:02:53]} 17. f5 {[%clk 0:02:20]}  Bf7 {[%clk 0:02:53]} 18. g4 {[%clk 0:02:21]}  b4 {[%clk 0:02:52]} 19. c4 {[%clk 0:02:18]}  h6 {[%clk 0:02:31]} 20. h4 {[%clk 0:02:16]}  Qe8 {[%clk 0:02:16]} 21. g5 {[%clk 0:02:05]}  Bh5 {[%clk 0:02:14]} 22. Bf3 {[%clk 0:01:43]}  Bxf3 {[%clk 0:02:13]} 23. Qxf3 {[%clk 0:01:44]}  Nd4 {[%clk 0:02:06]} 24. Qg4 {[%clk 0:01:41]}  hxg5 {[%clk 0:01:14]} 25. hxg5 {[%clk 0:01:41]}  Kf7 {[%clk 0:01:14]} 26. Bd2 {[%clk 0:01:08]}  Ke7 {[%clk 0:01:10]} 27. Kg2 {[%clk 0:01:07]}  Kd7 {[%clk 0:01:05]} 28. Rh1 {[%clk 0:01:06]}  Kc6 {[%clk 0:01:05]} 29. Rh7 {[%clk 0:01:02]}  Rc7 {[%clk 0:01:04]} 30. Rah1 {[%clk 0:00:54]}  Qc8 {[%clk 0:00:51]} 31. Be3 {[%clk 0:00:40]}  Nc2 {[%clk 0:00:38]} 32. Bf2 {[%clk 0:00:29]}  b3 {[%clk 0:00:24]} 33. Qd1 {[%clk 0:00:23]}  Qb7 {[%clk 0:00:15]} 34. gxf6 {[%clk 0:00:22]}  gxf6 {[%clk 0:00:13]} 35. Rxc7+ {[%clk 0:00:20]}  Qxc7 {[%clk 0:00:14]} 36. axb3 {[%clk 0:00:20]}  Nb4 {[%clk 0:00:06]} 37. d4 {[%clk 0:00:19]}  Qg7+ {[%clk 0:00:06]} 38. Kf3 {[%clk 0:00:20]}  Rg8 {[%clk 0:00:06]} 39. Rg1 {[%clk 0:00:14]}  Qh7 {[%clk 0:00:06]} 40. Rxg8 {[%clk 0:00:14]}  Qxg8 {[%clk 0:00:06]} 41. d5+ {[%clk 0:00:11]}  Kb7 {[%clk 0:00:05]} 42. Qg1 {[%clk 0:00:09]}  Qh7 {[%clk 0:00:03]} 43. Qg6 {[%clk 0:00:05]}  Qh1+ {[%clk 0:00:03]} 44. Kg3 {[%clk 0:00:04]}  Nd3 {[%clk 0:00:04]} 45. Qf7+ {[%clk 0:00:04]}  Kc8 {[%clk 0:00:04]} 46. Qe8+ {[%clk 0:00:04]}  Kc7 {[%clk 0:00:05]} 47. Qc6+ {[%clk 0:00:05]}  Kd8 {[%clk 0:00:05]} 48. Qxd6+ {[%clk 0:00:05]}  Kc8 {[%clk 0:00:05]} 49. Qf8+ {[%clk 0:00:05]}  Kd7 {[%clk 0:00:05]} 50. Qf7+ {[%clk 0:00:05]}  Kc8 {[%clk 0:00:06]} 51. Qe8+ {[%clk 0:00:05]}  Kc7 {[%clk 0:00:06]} 52. d6+ {[%clk 0:00:05]}  Kxd6 {[%clk 0:00:03]} 53. Qd8+ {[%clk 0:00:05]}  Kc6 {[%clk 0:00:03]} 54. Qxd3 {[%clk 0:00:05]}  Qh5 {[%clk 0:00:02]} 55. Qd5+ {[%clk 0:00:05]}  Kc7 {[%clk 0:00:03]} 56. Qc5+ {[%clk 0:00:05]}  Kd7 {[%clk 0:00:02]} 57. Qxa7+ {[%clk 0:00:05]}  Ke8 {[%clk 0:00:02]} 58. Qb8+ {[%clk 0:00:05]}  Kf7 {[%clk 0:00:03]} 59. Qa7+ {[%clk 0:00:05]}  Kg8 {[%clk 0:00:03]} 60. Qe3 {[%clk 0:00:06]}  Qd1 {[%clk 0:00:03]} 61. Qf3 {[%clk 0:00:06]}  Qc2 {[%clk 0:00:03]} 62. c5 {[%clk 0:00:06]}  Kf7 {[%clk 0:00:03]} 63. b4 {[%clk 0:00:06]}  Qc1 {[%clk 0:00:03]} 64. b5 {[%clk 0:00:06]}  Qg5+ {[%clk 0:00:03]} 65. Qg4 {[%clk 0:00:07]}  Qc1 {[%clk 0:00:03]} 66. Qg6+ {[%clk 0:00:07]}  Ke7 {[%clk 0:00:03]} 67. Qg7+ {[%clk 0:00:07]}  Ke8 {[%clk 0:00:04]} 68. Qxf6 {[%clk 0:00:07]}  Qf4+ {[%clk 0:00:04]} 69. Kg2 {[%clk 0:00:07]}  Qxe4+ {[%clk 0:00:05]} 70. Kg1 {[%clk 0:00:07]}  Qg4+ {[%clk 0:00:03]} 71. Kh2 {[%clk 0:00:07]}  Qf4+ {[%clk 0:00:04]} 72. Bg3 {[%clk 0:00:07]}  Qd2+ {[%clk 0:00:05]} 73. Kh3 {[%clk 0:00:07]}  Qd1 {[%clk 0:00:05]} 74. Qe6+ {[%clk 0:00:07]}  Kf8 {[%clk 0:00:06]} 75. Qd6+ {[%clk 0:00:08]} 1-0


[Site "https://www.chess.com"]

[Event "Titled Tuesday Blitz January 03 Late 2023"]
[White "Holt, Conrad"]
[Black "Pranav, V"]
[WhiteFideId "2034387"]
[BlackFideId "25060783"]
[WhiteElo "2540"]
[BlackElo "2597"]
[Result "0-1"]
[Round "04"]
[TimeControl "180+2"]
[Date "2023.01.03"]
[WhiteClock "0:00:03"]
[BlackClock "0:00:04"]

1. d4 {[%clk 0:03:00]}  Nf6 {[%clk 0:02:56]} 2. c4 {[%clk 0:03:01]}  Nc6 {[%clk 0:02:55]} 3. Nf3 {[%clk 0:03:00]}  e6 {[%clk 0:02:55]} 4. Nc3 {[%clk 0:02:58]}  Bb4 {[%clk 0:02:55]} 5. Qc2 {[%clk 0:02:58]}  d6 {[%clk 0:02:55]} 6. Bd2 {[%clk 0:02:57]}  O-O {[%clk 0:02:55]} 7. a3 {[%clk 0:02:56]}  Bxc3 {[%clk 0:02:55]} 8. Bxc3 {[%clk 0:02:57]}  Qe7 {[%clk 0:02:55]} 9. b4 {[%clk 0:02:56]}  e5 {[%clk 0:02:48]} 10. d5 {[%clk 0:02:56]}  Nd8 {[%clk 0:02:48]} 11. e4 {[%clk 0:02:52]}  Nh5 {[%clk 0:02:48]} 12. g3 {[%clk 0:02:52]}  f5 {[%clk 0:02:48]} 13. Bg2 {[%clk 0:02:52]}  fxe4 {[%clk 0:02:42]} 14. Qxe4 {[%clk 0:02:51]}  Bf5 {[%clk 0:02:42]} 15. Qe3 {[%clk 0:02:50]}  Nf7 {[%clk 0:02:41]} 16. O-O {[%clk 0:02:42]}  Nh6 {[%clk 0:02:38]} 17. a4 {[%clk 0:02:22]}  Qd7 {[%clk 0:02:37]} 18. Qg5 {[%clk 0:02:11]}  Nf6 {[%clk 0:02:36]} 19. Rfe1 {[%clk 0:02:07]}  Bh3 {[%clk 0:02:26]} 20. Bh1 {[%clk 0:02:02]}  Rae8 {[%clk 0:02:18]} 21. b5 {[%clk 0:01:59]}  Qf7 {[%clk 0:02:09]} 22. a5 {[%clk 0:01:52]}  Bg4 {[%clk 0:02:01]} 23. Ra2 {[%clk 0:01:45]}  Nxd5 {[%clk 0:01:55]} 24. Bxe5 {[%clk 0:01:33]}  Nb4 {[%clk 0:01:32]} 25. Rd2 {[%clk 0:01:23]}  Bxf3 {[%clk 0:01:11]} 26. Bxf3 {[%clk 0:01:22]}  Rxe5 {[%clk 0:01:11]} 27. Rxe5 {[%clk 0:01:20]}  dxe5 {[%clk 0:01:11]} 28. Bxb7 {[%clk 0:01:17]}  Qxc4 {[%clk 0:01:11]} 29. Rd7 {[%clk 0:01:09]}  Nf7 {[%clk 0:01:10]} 30. Qe7 {[%clk 0:01:03]}  Qxb5 {[%clk 0:01:04]} 31. a6 {[%clk 0:00:58]}  h5 {[%clk 0:00:47]} 32. Rxc7 {[%clk 0:00:54]}  h4 {[%clk 0:00:44]} 33. gxh4 {[%clk 0:00:29]}  Qb6 {[%clk 0:00:42]} 34. Be4 {[%clk 0:00:24]}  Qd6 {[%clk 0:00:14]} 35. Kg2 {[%clk 0:00:09]}  Nxa6 {[%clk 0:00:06]} 36. Rxa7 {[%clk 0:00:09]}  Nc5 {[%clk 0:00:06]} 37. Qxd6 {[%clk 0:00:07]}  Nxd6 {[%clk 0:00:07]} 38. Bd5+ {[%clk 0:00:08]}  Kh7 {[%clk 0:00:07]} 39. Rc7 {[%clk 0:00:07]}  Nce4 {[%clk 0:00:07]} 40. f3 {[%clk 0:00:07]}  Nf6 {[%clk 0:00:07]} 41. Bb3 {[%clk 0:00:07]}  Kh8 {[%clk 0:00:05]} 42. Re7 {[%clk 0:00:07]}  Nf5 {[%clk 0:00:04]} 43. Rxe5 {[%clk 0:00:07]}  Nxh4+ {[%clk 0:00:05]} 44. Kg3 {[%clk 0:00:07]}  Nxf3 {[%clk 0:00:04]} 45. Kxf3 {[%clk 0:00:06]}  Nd7+ {[%clk 0:00:05]} 46. Ke4 {[%clk 0:00:07]}  Nxe5 {[%clk 0:00:05]} 47. Kxe5 {[%clk 0:00:07]}  Rf2 {[%clk 0:00:04]} 48. h3 {[%clk 0:00:07]}  Kh7 {[%clk 0:00:03]} 49. Be6 {[%clk 0:00:07]}  Kh6 {[%clk 0:00:04]} 50. Bd7 {[%clk 0:00:07]}  Kg5 {[%clk 0:00:04]} 51. Ke4 {[%clk 0:00:07]}  Kh4 {[%clk 0:00:04]} 52. Ke3 {[%clk 0:00:07]}  Rf7 {[%clk 0:00:04]} 53. Bc8 {[%clk 0:00:07]}  g5 {[%clk 0:00:04]} 54. Ke4 {[%clk 0:00:07]}  Kg3 {[%clk 0:00:04]} 55. Ke3 {[%clk 0:00:07]}  Rf4 {[%clk 0:00:05]} 56. Bd7 {[%clk 0:00:06]}  Rh4 {[%clk 0:00:05]} 57. Bc8 {[%clk 0:00:03]}  Rxh3 {[%clk 0:00:04]} 58. Ke4 {[%clk 0:00:04]}  Rh8 {[%clk 0:00:03]} 59. Bd7 {[%clk 0:00:03]}  Rf8 {[%clk 0:00:04]} 0-1


[Site "https://www.chess.com"]

[Event "Titled Tuesday Blitz January 03 Late 2023"]
[White "Kravtsiv, Martyn"]
[Black "Xiong, Jeffery"]
[WhiteFideId "14113147"]
[BlackFideId "2047640"]
[WhiteElo "2598"]
[BlackElo "2692"]
[Result "0-1"]
[Round "04"]
[TimeControl "180+2"]
[Date "2023.01.03"]
[WhiteClock "0:00:07"]
[BlackClock "0:00:53"]

1. e4 {[%clk 0:03:00]}  c6 {[%clk 0:02:58]} 2. Nf3 {[%clk 0:03:00]}  d5 {[%clk 0:02:58]} 3. d3 {[%clk 0:03:01]}  Qc7 {[%clk 0:02:58]} 4. Nc3 {[%clk 0:03:00]}  dxe4 {[%clk 0:02:56]} 5. Nxe4 {[%clk 0:03:01]}  Bg4 {[%clk 0:02:56]} 6. h3 {[%clk 0:03:00]}  Bh5 {[%clk 0:02:56]} 7. Qe2 {[%clk 0:02:51]}  Nd7 {[%clk 0:02:52]} 8. g4 {[%clk 0:02:49]}  Bg6 {[%clk 0:02:53]} 9. Ng3 {[%clk 0:02:48]}  e6 {[%clk 0:02:50]} 10. Bg2 {[%clk 0:02:43]}  Bd6 {[%clk 0:02:47]} 11. Ne4 {[%clk 0:02:44]}  Bf4 {[%clk 0:02:46]} 12. Bxf4 {[%clk 0:02:24]}  Qxf4 {[%clk 0:02:47]} 13. Nfd2 {[%clk 0:02:24]}  Ngf6 {[%clk 0:02:45]} 14. Ng3 {[%clk 0:02:17]}  h5 {[%clk 0:02:45]} 15. O-O-O {[%clk 0:01:59]}  hxg4 {[%clk 0:02:42]} 16. hxg4 {[%clk 0:01:57]}  O-O-O {[%clk 0:02:42]} 17. Bh3 {[%clk 0:01:28]}  Ne5 {[%clk 0:02:38]} 18. Qe3 {[%clk 0:00:50]}  Qxe3 {[%clk 0:02:37]} 19. fxe3 {[%clk 0:00:50]}  Nexg4 {[%clk 0:02:37]} 20. Bxg4 {[%clk 0:00:50]}  Nxg4 {[%clk 0:02:38]} 21. e4 {[%clk 0:00:50]}  f5 {[%clk 0:02:26]} 22. exf5 {[%clk 0:00:48]}  exf5 {[%clk 0:02:26]} 23. Rdf1 {[%clk 0:00:45]}  Rxh1 {[%clk 0:02:14]} 24. Nxh1 {[%clk 0:00:44]}  Rh8 {[%clk 0:02:13]} 25. Nc4 {[%clk 0:00:42]}  Rh3 {[%clk 0:02:04]} 26. Rg1 {[%clk 0:00:39]}  Kc7 {[%clk 0:01:57]} 27. Ng3 {[%clk 0:00:36]}  Bh7 {[%clk 0:01:40]} 28. Ne2 {[%clk 0:00:34]}  g5 {[%clk 0:01:40]} 29. Nd4 {[%clk 0:00:33]}  Kd7 {[%clk 0:01:34]} 30. a4 {[%clk 0:00:28]}  c5 {[%clk 0:01:25]} 31. Nb5 {[%clk 0:00:24]}  Bg8 {[%clk 0:01:23]} 32. Nxa7 {[%clk 0:00:17]}  Bxc4 {[%clk 0:01:23]} 33. dxc4 {[%clk 0:00:17]}  Ne5 {[%clk 0:01:24]} 34. b3 {[%clk 0:00:14]}  g4 {[%clk 0:01:24]} 35. Nb5 {[%clk 0:00:14]}  Nf3 {[%clk 0:01:21]} 36. Rd1+ {[%clk 0:00:12]}  Ke6 {[%clk 0:01:19]} 37. a5 {[%clk 0:00:11]}  g3 {[%clk 0:01:18]} 38. Nc3 {[%clk 0:00:07]}  g2 {[%clk 0:01:16]} 39. Ne2 {[%clk 0:00:07]}  Ke5 {[%clk 0:01:02]} 40. Rd8 {[%clk 0:00:07]}  Nd4 {[%clk 0:00:57]} 41. Re8+ {[%clk 0:00:07]}  Kd6 {[%clk 0:00:53]} 0-1


[Site "https://www.chess.com"]

[Event "Titled Tuesday Blitz January 03 Late 2023"]
[White "Yanchenko, Roman"]
[Black "Tari, Aryan"]
[WhiteFideId "4137329"]
[BlackFideId "1510045"]
[WhiteElo "2466"]
[BlackElo "2642"]
[Result "1/2-1/2"]
[Round "04"]
[TimeControl "180+2"]
[Date "2023.01.03"]
[WhiteClock "0:00:19"]
[BlackClock "0:00:08"]

1. d4 {[%clk 0:03:00]}  d5 {[%clk 0:02:42]} 2. c4 {[%clk 0:03:00]}  e6 {[%clk 0:02:43]} 3. cxd5 {[%clk 0:03:01]}  exd5 {[%clk 0:02:43]} 4. Bf4 {[%clk 0:03:01]}  Nf6 {[%clk 0:02:40]} 5. e3 {[%clk 0:03:02]}  Bd6 {[%clk 0:02:34]} 6. Bxd6 {[%clk 0:03:01]}  Qxd6 {[%clk 0:02:35]} 7. Bd3 {[%clk 0:03:01]}  O-O {[%clk 0:02:34]} 8. Ne2 {[%clk 0:03:01]}  Nbd7 {[%clk 0:02:33]} 9. Qc2 {[%clk 0:03:01]}  c5 {[%clk 0:02:32]} 10. Nbc3 {[%clk 0:02:56]}  a6 {[%clk 0:02:25]} 11. dxc5 {[%clk 0:02:55]}  Nxc5 {[%clk 0:02:26]} 12. Bf5 {[%clk 0:02:52]}  Bxf5 {[%clk 0:02:11]} 13. Qxf5 {[%clk 0:02:52]}  g6 {[%clk 0:02:11]} 14. Qc2 {[%clk 0:02:45]}  b5 {[%clk 0:02:11]} 15. a3 {[%clk 0:02:38]}  Rac8 {[%clk 0:02:02]} 16. Rd1 {[%clk 0:02:36]}  Na4 {[%clk 0:01:58]} 17. Qd2 {[%clk 0:02:22]}  Nb6 {[%clk 0:01:56]} 18. Qd4 {[%clk 0:01:51]}  Rc4 {[%clk 0:01:48]} 19. Qd3 {[%clk 0:01:51]}  Ng4 {[%clk 0:01:14]} 20. h3 {[%clk 0:01:36]}  Ne5 {[%clk 0:01:10]} 21. Qd2 {[%clk 0:01:36]}  b4 {[%clk 0:01:08]} 22. axb4 {[%clk 0:01:36]}  Rxb4 {[%clk 0:01:09]} 23. O-O {[%clk 0:01:26]}  Nec4 {[%clk 0:01:06]} 24. Qc1 {[%clk 0:01:01]}  Nxb2 {[%clk 0:01:07]} 25. Rd4 {[%clk 0:00:55]}  Rc8 {[%clk 0:01:04]} 26. Rxb4 {[%clk 0:00:20]}  Qxb4 {[%clk 0:01:04]} 27. Qa1 {[%clk 0:00:20]}  Rxc3 {[%clk 0:00:45]} 28. Nxc3 {[%clk 0:00:21]}  Qxc3 {[%clk 0:00:46]} 29. Qxa6 {[%clk 0:00:22]}  N6c4 {[%clk 0:00:38]} 30. Qa8+ {[%clk 0:00:22]}  Kg7 {[%clk 0:00:39]} 31. Qxd5 {[%clk 0:00:22]}  Nd2 {[%clk 0:00:39]} 32. Ra1 {[%clk 0:00:15]}  Nb3 {[%clk 0:00:27]} 33. Ra7 {[%clk 0:00:14]}  Qe1+ {[%clk 0:00:22]} 34. Kh2 {[%clk 0:00:14]}  Qxf2 {[%clk 0:00:23]} 35. Qe5+ {[%clk 0:00:15]}  Kh6 {[%clk 0:00:18]} 36. Qf4+ {[%clk 0:00:05]}  Qxf4+ {[%clk 0:00:18]} 37. exf4 {[%clk 0:00:06]}  Nd3 {[%clk 0:00:19]} 38. Rxf7 {[%clk 0:00:06]}  Nbc5 {[%clk 0:00:18]} 39. f5 {[%clk 0:00:07]}  Ne5 {[%clk 0:00:17]} 40. Rc7 {[%clk 0:00:06]}  Ncd7 {[%clk 0:00:16]} 41. fxg6 {[%clk 0:00:06]}  hxg6 {[%clk 0:00:16]} 42. Ra7 {[%clk 0:00:07]}  Nf6 {[%clk 0:00:15]} 43. Ra6 {[%clk 0:00:07]}  Kg7 {[%clk 0:00:11]} 44. Ra5 {[%clk 0:00:08]}  Nc6 {[%clk 0:00:10]} 45. Ra6 {[%clk 0:00:09]}  Nd4 {[%clk 0:00:10]} 46. Ra7+ {[%clk 0:00:09]}  Kh6 {[%clk 0:00:10]} 47. Ra2 {[%clk 0:00:10]}  g5 {[%clk 0:00:10]} 48. Ra4 {[%clk 0:00:11]}  Nf5 {[%clk 0:00:08]} 49. g4 {[%clk 0:00:11]}  Nh4 {[%clk 0:00:08]} 50. Ra6 {[%clk 0:00:12]}  Kg7 {[%clk 0:00:08]} 51. Kg3 {[%clk 0:00:12]}  Ne4+ {[%clk 0:00:09]} 52. Kh2 {[%clk 0:00:13]}  Nd2 {[%clk 0:00:07]} 53. Kg3 {[%clk 0:00:13]}  Ne4+ {[%clk 0:00:05]} 54. Kh2 {[%clk 0:00:14]}  Kf7 {[%clk 0:00:05]} 55. Kg1 {[%clk 0:00:13]}  Nc3 {[%clk 0:00:04]} 56. Kh2 {[%clk 0:00:13]}  Ne2 {[%clk 0:00:04]} 57. Kh1 {[%clk 0:00:13]}  Nf4 {[%clk 0:00:04]} 58. Kh2 {[%clk 0:00:13]}  Kg7 {[%clk 0:00:04]} 59. Kg3 {[%clk 0:00:14]}  Nhg6 {[%clk 0:00:04]} 60. Ra7+ {[%clk 0:00:14]}  Kh6 {[%clk 0:00:04]} 61. Ra6 {[%clk 0:00:15]}  Ne2+ {[%clk 0:00:05]} 62. Kf2 {[%clk 0:00:15]}  Nd4 {[%clk 0:00:05]} 63. Kg3 {[%clk 0:00:16]}  Ne2+ {[%clk 0:00:05]} 64. Kf2 {[%clk 0:00:16]}  Nf4 {[%clk 0:00:06]} 65. Kg3 {[%clk 0:00:16]}  Kg7 {[%clk 0:00:07]} 66. Ra5 {[%clk 0:00:16]}  Ne6 {[%clk 0:00:05]} 67. Rb5 {[%clk 0:00:16]}  Ngf4 {[%clk 0:00:05]} 68. Ra5 {[%clk 0:00:17]}  Ne2+ {[%clk 0:00:06]} 69. Kf2 {[%clk 0:00:17]}  N2f4 {[%clk 0:00:06]} 70. Kg3 {[%clk 0:00:18]}  Kf6 {[%clk 0:00:06]} 71. h4 {[%clk 0:00:18]}  Ne2+ {[%clk 0:00:05]} 72. Kf2 {[%clk 0:00:18]}  N2f4 {[%clk 0:00:05]} 73. h5 {[%clk 0:00:19]}  Kg7 {[%clk 0:00:06]} 74. Kg3 {[%clk 0:00:19]}  Ne2+ {[%clk 0:00:06]} 75. Kf2 {[%clk 0:00:19]}  N2f4 {[%clk 0:00:06]} 76. Kf3 {[%clk 0:00:20]}  Kh6 {[%clk 0:00:06]} 77. Ra6 {[%clk 0:00:20]}  Kh7 {[%clk 0:00:06]} 78. Ra7+ {[%clk 0:00:20]}  Kh6 {[%clk 0:00:06]} 79. Ke4 {[%clk 0:00:21]}  Ng7 {[%clk 0:00:06]} 80. Ra6+ {[%clk 0:00:21]}  Kh7 {[%clk 0:00:06]} 81. Ke5 {[%clk 0:00:21]}  Nfxh5 {[%clk 0:00:07]} 82. gxh5 {[%clk 0:00:20]}  Nxh5 {[%clk 0:00:07]} 83. Kf5 {[%clk 0:00:21]}  Ng7+ {[%clk 0:00:05]} 84. Kf6 {[%clk 0:00:20]}  Nh5+ {[%clk 0:00:04]} 85. Kxg5 {[%clk 0:00:19]}  Ng7 {[%clk 0:00:04]} 86. Ra7 {[%clk 0:00:20]}  Kg8 {[%clk 0:00:04]} 87. Kf6 {[%clk 0:00:19]}  Ne8+ {[%clk 0:00:05]} 88. Kg6 {[%clk 0:00:19]}  Kf8 {[%clk 0:00:05]} 89. Rf7+ {[%clk 0:00:19]}  Kg8 {[%clk 0:00:05]} 90. Rf2 {[%clk 0:00:20]}  Ng7 {[%clk 0:00:06]} 91. Ra2 {[%clk 0:00:19]}  Ne8 {[%clk 0:00:06]} 92. Ra7 {[%clk 0:00:19]}  Kf8 {[%clk 0:00:06]} 93. Rd7 {[%clk 0:00:19]}  Kg8 {[%clk 0:00:06]} 94. Rf7 {[%clk 0:00:20]}  Nd6 {[%clk 0:00:05]} 95. Rf6 {[%clk 0:00:18]}  Ne8 {[%clk 0:00:05]} 96. Rf5 {[%clk 0:00:19]}  Ng7 {[%clk 0:00:05]} 97. Rf1 {[%clk 0:00:18]}  Ne8 {[%clk 0:00:05]} 98. Rf2 {[%clk 0:00:18]}  Ng7 {[%clk 0:00:05]} 99. Kf6 {[%clk 0:00:19]}  Ne8+ {[%clk 0:00:05]} 100. Ke7 {[%clk 0:00:19]}  Ng7 {[%clk 0:00:06]} 101. Rg2 {[%clk 0:00:20]}  Kh7 {[%clk 0:00:06]} 102. Kf6 {[%clk 0:00:19]}  Nh5+ {[%clk 0:00:06]} 103. Kf7 {[%clk 0:00:20]}  Kh6 {[%clk 0:00:07]} 104. Rg6+ {[%clk 0:00:20]}  Kh7 {[%clk 0:00:07]} 105. Re6 {[%clk 0:00:20]}  Ng7 {[%clk 0:00:08]} 106. Re4 {[%clk 0:00:21]}  Kh6 {[%clk 0:00:08]} 107. Re1 {[%clk 0:00:20]}  Nh5 {[%clk 0:00:08]} 108. Rg1 {[%clk 0:00:20]}  Kh7 {[%clk 0:00:08]} 109. Rg6 {[%clk 0:00:19]}  Nf4 {[%clk 0:00:08]} 110. Rf6 {[%clk 0:00:19]}  Nh5 {[%clk 0:00:08]} 111. Re6 {[%clk 0:00:19]}  Nf4 {[%clk 0:00:08]} 112. Re4 {[%clk 0:00:19]}  Nh5 {[%clk 0:00:08]} 113. Re6 {[%clk 0:00:19]} 1/2-1/2


[Site "https://www.chess.com"]

[Event "Titled Tuesday Blitz January 03 Late 2023"]
[White "Lazavik, Denis"]
[Black "Maksimovic, Bojan"]
[WhiteFideId "13515110"]
[BlackFideId "14408120"]
[WhiteElo "2544"]
[BlackElo "2486"]
[Result "1-0"]
[Round "04"]
[TimeControl "180+2"]
[Date "2023.01.03"]
[WhiteClock "0:00:25"]
[BlackClock "0:00:01"]

1. d4 {[%clk 0:03:00]}  Nf6 {[%clk 0:02:59]} 2. c4 {[%clk 0:03:00]}  g6 {[%clk 0:02:59]} 3. g3 {[%clk 0:03:00]}  Bg7 {[%clk 0:02:59]} 4. Bg2 {[%clk 0:03:01]}  O-O {[%clk 0:03:00]} 5. Nc3 {[%clk 0:03:02]}  d6 {[%clk 0:03:00]} 6. Nf3 {[%clk 0:03:02]}  Nc6 {[%clk 0:03:01]} 7. O-O {[%clk 0:03:03]}  a6 {[%clk 0:03:01]} 8. h3 {[%clk 0:03:00]}  Bf5 {[%clk 0:03:01]} 9. g4 {[%clk 0:02:47]}  Bd7 {[%clk 0:03:00]} 10. e4 {[%clk 0:02:47]}  e5 {[%clk 0:03:01]} 11. Be3 {[%clk 0:02:46]}  Re8 {[%clk 0:02:59]} 12. Rc1 {[%clk 0:02:46]}  h5 {[%clk 0:02:54]} 13. g5 {[%clk 0:02:44]}  Ng4 {[%clk 0:02:54]} 14. hxg4 {[%clk 0:02:28]}  hxg4 {[%clk 0:02:55]} 15. d5 {[%clk 0:02:20]}  gxf3 {[%clk 0:02:54]} 16. Bxf3 {[%clk 0:02:19]}  Nd4 {[%clk 0:02:55]} 17. Bg4 {[%clk 0:02:19]}  f5 {[%clk 0:01:26]} 18. gxf6 {[%clk 0:02:17]}  Bxf6 {[%clk 0:01:27]} 19. Kg2 {[%clk 0:02:15]}  Kg7 {[%clk 0:01:26]} 20. Rh1 {[%clk 0:02:13]}  Qc8 {[%clk 0:01:23]} 21. Bxd7 {[%clk 0:01:42]}  Qxd7 {[%clk 0:01:24]} 22. f3 {[%clk 0:01:31]}  Rh8 {[%clk 0:01:22]} 23. Qd2 {[%clk 0:01:31]}  Rxh1 {[%clk 0:00:48]} 24. Rxh1 {[%clk 0:01:32]}  Rh8 {[%clk 0:00:48]} 25. Rxh8 {[%clk 0:01:30]}  Kxh8 {[%clk 0:00:49]} 26. Bxd4 {[%clk 0:01:30]}  exd4 {[%clk 0:00:49]} 27. Qh6+ {[%clk 0:01:31]}  Kg8 {[%clk 0:00:44]} 28. Qxg6+ {[%clk 0:01:31]}  Qg7 {[%clk 0:00:18]} 29. Qxg7+ {[%clk 0:01:31]}  Kxg7 {[%clk 0:00:19]} 30. Nd1 {[%clk 0:01:30]}  d3 {[%clk 0:00:13]} 31. f4 {[%clk 0:01:29]}  Kg6 {[%clk 0:00:10]} 32. Kf3 {[%clk 0:01:29]}  Bd4 {[%clk 0:00:10]} 33. b3 {[%clk 0:01:29]}  Kh5 {[%clk 0:00:10]} 34. Nf2 {[%clk 0:01:27]}  d2 {[%clk 0:00:07]} 35. Nd1 {[%clk 0:01:27]}  Kh4 {[%clk 0:00:07]} 36. f5 {[%clk 0:01:23]}  Kg5 {[%clk 0:00:08]} 37. Ke2 {[%clk 0:01:18]}  Kf4 {[%clk 0:00:08]} 38. Kd3 {[%clk 0:01:19]}  Be5 {[%clk 0:00:05]} 39. b4 {[%clk 0:01:14]}  b6 {[%clk 0:00:03]} 40. a4 {[%clk 0:01:12]}  a5 {[%clk 0:00:03]} 41. bxa5 {[%clk 0:01:00]}  bxa5 {[%clk 0:00:04]} 42. Kxd2 {[%clk 0:00:44]}  Kxe4 {[%clk 0:00:05]} 43. Nf2+ {[%clk 0:00:44]}  Kd4 {[%clk 0:00:02]} 44. Ng4 {[%clk 0:00:44]}  Bg7 {[%clk 0:00:02]} 45. f6 {[%clk 0:00:44]}  Bf8 {[%clk 0:00:02]} 46. f7 {[%clk 0:00:40]}  Kxc4 {[%clk 0:00:02]} 47. Nf6 {[%clk 0:00:41]}  Kd4 {[%clk 0:00:02]} 48. Kc2 {[%clk 0:00:39]}  Be7 {[%clk 0:00:02]} 49. Kb3 {[%clk 0:00:37]}  Ke5 {[%clk 0:00:03]} 50. Ng8 {[%clk 0:00:23]}  Bf8 {[%clk 0:00:02]} 51. Kc4 {[%clk 0:00:24]}  Ke4 {[%clk 0:00:01]} 52. Nf6+ {[%clk 0:00:23]}  Kf5 {[%clk 0:00:01]} 53. Nd7 {[%clk 0:00:24]}  Be7 {[%clk 0:00:01]} 54. f8=Q+ {[%clk 0:00:25]} 1-0


[Site "https://www.chess.com"]